bitfinex/quotes_BTCUSD_20240820
["timestamp","ask_amount","ask_price","bid_price","bid_amount"]
[1724179767360,0.17636871,59613.0,59612.0,0.0009042]
[1724179767568,0.17636871,59613.0,59612.0,0.0109042]
[1724179767569,0.17736871,59613.0,59612.0,0.0109042]
[1724179768008,0.17736871,59613.0,59612.0,0.0129042]
[1724179768228,0.17636871,59613.0,59612.0,0.0109042]
[1724179768436,0.17736871,59613.0,59612.0,0.0159042]
[1724179768651,0.17636871,59613.0,59612.0,0.0159042]
[1724179768864,0.17636871,59613.0,59612.0,0.0009042]
[1724179769069,0.17736871,59613.0,59612.0,0.0129042]
[1724179770098,0.17636871,59613.0,59612.0,0.0129042]
[1724179770742,0.16475277,59613.0,59612.0,0.0129042]
[1724179771155,0.16575277,59613.0,59612.0,0.0129042]
[1724179771369,0.16475277,59613.0,59612.0,0.0129042]
[1724179775146,0.15575277,59613.0,59612.0,0.0129042]
[1724179775726,0.15475277,59613.0,59612.0,0.0129042]
[1724179777742,0.05035277,59613.0,59612.0,0.0129042]
[1724179778589,0.07451433,59613.0,59612.0,0.0129042]
[1724179781799,1.01491433,59613.0,59612.0,0.0129042]
[1724179782050,2.61628702,59613.0,59612.0,0.0129042]
[1724179782257,2.75975457,59613.0,59612.0,0.0129042]
[1724179782473,2.63385047,59613.0,59612.0,0.0129042]
[1724179782888,2.63385047,59613.0,59612.0,0.0089042]
[1724179784380,2.63285047,59613.0,59612.0,0.0009042]
[1724179784686,2.75853497,59613.0,59612.0,0.0009042]
[1724179784883,2.75953497,59613.0,59612.0,0.0059042]
[1724179785354,2.63385047,59613.0,59612.0,0.0059042]
[1724179785600,2.75950371,59613.0,59612.0,0.0059042]
[1724179787099,3.02790071,59613.0,59612.0,0.0059042]
[1724179788342,3.02785082,59613.0,59612.0,0.0059042]
[1724179788605,2.90224747,59613.0,59612.0,0.0059042]
[1724179788849,3.24824747,59613.0,59612.0,0.0059042]
[1724179789055,3.02785082,59613.0,59612.0,0.0059042]
[1724179789972,3.02783066,59613.0,59612.0,0.0059042]
[1724179790642,2.90224747,59613.0,59612.0,0.0059042]
[1724179791985,2.63067247,59613.0,59612.0,0.0059042]
[1724179792224,2.92537247,59613.0,59612.0,0.0059042]
[1724179792442,2.92737247,59613.0,59612.0,0.0059042]
[1724179794411,3.54176947,59613.0,59612.0,0.0059042]
[1724179796805,3.54156757,59613.0,59612.0,0.0059042]
[1724179800382,3.19556757,59613.0,59612.0,0.0059042]
[1724179801436,3.46396457,59613.0,59612.0,0.0059042]
[1724179801630,3.46596457,59613.0,59612.0,0.0059042]
[1724179802036,3.46496457,59613.0,59612.0,0.0009042]
[1724179802929,3.46496457,59613.0,59612.0,0.0039042]
[1724179803477,3.59049922,59613.0,59612.0,0.0039042]
[1724179804516,3.41489922,59613.0,59612.0,0.0039042]
[1724179804931,3.29779922,59613.0,59612.0,0.0039042]
[1724179805144,3.41489922,59613.0,59612.0,0.0039042]
[1724179805395,3.28936457,59613.0,59612.0,0.0039042]
[1724179806239,3.63536457,59613.0,59612.0,0.0039042]
[1724179806448,3.28936457,59613.0,59612.0,0.0039042]
[1724179807584,0.369223,59602.0,59590.0,0.0818]
[1724179807809,0.231,59591.0,59590.0,0.0818]
[1724179808020,0.39625087,59591.0,59590.0,0.0818]
[1724179808229,0.40025087,59591.0,59590.0,0.0818]
[1724179808435,0.82812106,59591.0,59590.0,0.0818]
[1724179809519,0.68987306,59591.0,59590.0,0.0938]
[1724179809726,0.69087306,59591.0,59590.0,0.0938]
[1724179809947,0.82512106,59591.0,59590.0,0.0968]
[1724179810586,0.82712106,59591.0,59590.0,0.0968]
[1724179810833,1.09361706,59591.0,59590.0,0.0968]
[1724179811036,1.09761706,59591.0,59590.0,0.0968]
[1724179811246,1.09761706,59591.0,59590.0,0.015]
[1724179811247,1.09361706,59591.0,59590.0,0.015]
[1724179811442,1.09561706,59591.0,59590.0,0.015]
[1724179811816,1.36611306,59591.0,59590.0,0.015]
[1724179815656,1.36611306,59591.0,59590.0,0.0159042]
[1724179815886,1.36311306,59591.0,59590.0,0.0159042]
[1724179816084,1.36411306,59591.0,59590.0,0.1540042]
[1724179816432,0.82512106,59591.0,59590.0,0.1540042]
[1724179816690,0.53222106,59591.0,59590.0,0.1540042]
[1724179817101,0.53122106,59591.0,59590.0,0.1540042]
[1724179818321,0.39697306,59591.0,59590.0,0.1540042]
[1724179818678,0.53422106,59591.0,59590.0,0.1540042]
[1724179818883,0.80471706,59591.0,59590.0,0.0919042]
[1724179819082,1.36611306,59591.0,59590.0,0.0159042]
[1724179821231,1.63460906,59591.0,59590.0,0.0159042]
[1724179821443,1.73460906,59591.0,59590.0,0.0159042]
[1724179823517,1.75217994,59591.0,59590.0,0.0159042]
[1724179823723,1.80217994,59591.0,59590.0,0.0159042]
[1724179824763,2.07067594,59591.0,59590.0,0.00068624]
[1724179824973,2.07067594,59591.0,59587.0,0.0009042]
[1724179824974,0.676275,59588.0,59587.0,0.0009042]
[1724179825184,1.22133587,59588.0,59587.0,0.0009042]
[1724179825385,1.48984587,59588.0,59587.0,0.0009042]
[1724179825598,1.6405589,59588.0,59587.0,0.0009042]
[1724179825808,1.48984587,59588.0,59587.0,0.0009042]
[1724179826021,1.66472046,59588.0,59587.0,0.0009042]
[1724179826226,1.51400743,59588.0,59587.0,0.0009042]
[1724179826410,1.66472046,59588.0,59587.0,0.0019042]
[1724179826660,1.51500743,59588.0,59587.0,0.0109042]
[1724179826869,1.24649743,59588.0,59587.0,0.0109042]
[1724179827070,1.14209743,59588.0,59587.0,0.0109042]
[1724179827276,1.26762717,59588.0,59587.0,0.0109042]
[1724179829386,1.14209743,59588.0,59587.0,0.0109042]
[1724179829622,1.26762717,59588.0,59587.0,0.0109042]
[1724179830093,1.26761641,59588.0,59587.0,0.0109042]
[1724179830337,1.46509743,59588.0,59587.0,0.0109042]
[1724179831541,1.48809743,59588.0,59587.0,0.0109042]
[1724179832231,1.48809743,59588.0,59566.0,0.0609]
[1724179832232,0.967132,59574.0,59566.0,0.0609]
[1724179832439,0.9065,59568.0,59567.0,0.0817]
[1724179832649,1.34855087,59568.0,59567.0,0.0817]
[1724179832883,1.46537306,59568.0,59567.0,0.0817]
[1724179833306,1.73397306,59568.0,59567.0,0.0817]
[1724179833518,0.23,59559.0,59558.0,0.00902]
[1724179833724,0.25717872,59559.0,59558.0,0.00902]
[1724179833927,0.27564162,59559.0,59558.0,0.15412]
[1724179834142,0.5401039,59559.0,59558.0,0.15412]
[1724179834360,0.4057829,59559.0,59558.0,0.15412]
[1724179835218,0.45368079,59559.0,59558.0,0.15412]
[1724179835512,0.45368079,59559.0,59558.0,0.00902]
[1724179835513,2.09830379,59559.0,59558.0,0.00902]
[1724179835744,2.00407837,59559.0,59558.0,0.00902]
[1724179835973,2.00507837,59559.0,59558.0,0.00902]
[1724179836395,2.00407837,59559.0,59558.0,0.00902]
[1724179837320,2.00307837,59559.0,59558.0,0.00902]
[1724179837539,2.00407837,59559.0,59558.0,0.00902]
[1724179838194,2.00307837,59559.0,59558.0,0.00902]
[1724179838814,2.28930016,59559.0,59558.0,0.00902]
[1724179839703,1.199592,59551.0,59550.0,0.044962]
[1724179839914,1.322592,59551.0,59550.0,0.044962]
[1724179840126,1.591269,59551.0,59550.0,0.044962]
[1724179840568,1.937269,59551.0,59550.0,0.044962]
[1724179840978,0.468717,59542.0,59541.0,0.066]
[1724179841188,0.223,59542.0,59541.0,0.066]
[1724179841653,0.2,59542.0,59541.0,0.066]
[1724179842678,0.19397878,59550.0,59530.0,0.009042]
[1724179842679,0.2,59549.0,59545.0,0.1417]
[1724179842939,0.2,59549.0,59546.0,0.1417]
[1724179843112,0.2,59549.0,59534.0,0.268751]
[1724179843113,0.02,59548.0,59547.0,0.0799]
[1724179843746,0.02,59548.0,59547.0,0.1417]
[1724179848709,0.2,59549.0,59547.0,0.1417]
[1724179848961,0.2,59549.0,59548.0,0.1481]
[1724179851482,0.223,59549.0,59548.0,0.1481]
[1724179854638,0.626029,59549.0,59548.0,0.1481]
[1724179854809,0.626029,59549.0,59547.0,0.0009053]
[1724179854810,0.403035,59548.0,59547.0,0.0009053]
[1724179855078,0.83821961,59548.0,59547.0,0.0009053]
[1724179855866,0.84021961,59548.0,59547.0,0.0009053]
[1724179856627,0.83621961,59548.0,59547.0,0.0009053]
[1724179856896,0.83821961,59548.0,59547.0,0.0009053]
[1724179857157,0.83621961,59548.0,59547.0,0.0009053]
[1724179857402,0.93621961,59548.0,59547.0,0.0009053]
[1724179857650,0.39783961,59548.0,59547.0,0.0826053]
[1724179858401,0.26349461,59548.0,59547.0,0.0826053]
[1724179858634,0.17092351,59548.0,59547.0,0.0826053]
[1724179860569,0.17092351,59548.0,59547.0,0.1451053]
[1724179861079,0.07092351,59548.0,59547.0,0.1451053]
[1724179862609,0.023,59548.0,59547.0,0.1451053]
[1724179862868,0.04705817,59548.0,59547.0,0.1451053]
[1724179863344,0.09498496,59548.0,59547.0,0.1451053]
[1724179863583,0.07092679,59548.0,59547.0,0.1423053]
[1724179867122,0.47396179,59548.0,59547.0,0.1423053]
[1724179867364,0.2,59541.0,59533.0,0.4771]
[1724179867648,0.07092679,59540.0,59533.0,0.4771]
[1724179867908,0.07501947,59539.0,59534.0,0.1391]
[1724179868166,0.04792679,59538.0,59535.0,0.0607]
[1724179868438,0.023,59537.0,59536.0,0.1424]
[1724179868710,0.09842874,59537.0,59536.0,0.1424]
[1724179872078,0.09842874,59537.0,59532.0,0.1398]
[1724179872324,0.04792679,59536.0,59532.0,0.1398]
[1724179872591,0.023,59535.0,59533.0,0.0795]
[1724179872849,0.023,59535.0,59534.0,0.1398]
[1724179873105,0.07096221,59540.0,59534.0,0.0659]
[1724179873344,0.04796221,59539.0,59538.0,0.0755]
[1724179873676,0.07096221,59539.0,59538.0,0.0755]
[1724179875010,0.07096221,59539.0,59538.0,0.0708]
[1724179875494,0.07096221,59539.0,59538.0,0.0695]
[1724179875738,0.07096221,59539.0,59538.0,0.0704053]
[1724179875979,0.10335843,59539.0,59538.0,0.0636053]
[1724179876544,0.07096221,59539.0,59538.0,0.0576053]
[1724179876775,0.07096221,59539.0,59538.0,0.0565053]
[1724179877247,0.07096221,59539.0,59538.0,0.0525053]
[1724179878412,0.07096221,59539.0,59538.0,0.0422053]
[1724179878664,0.03,59543.0,59538.0,0.0422053]
[1724179878931,0.04795543,59542.0,59538.0,0.0405053]
[1724179879172,0.030823,59550.0,59539.0,0.0625]
[1724179879399,0.04295079,59549.0,59539.0,0.0625]
[1724179879890,0.04295079,59549.0,59539.0,0.0576]
[1724179880163,0.04295079,59549.0,59539.0,0.0478]
[1724179880435,0.03,59540.0,59539.0,0.0478]
[1724179880669,0.053,59540.0,59539.0,0.0478]
[1724179880918,0.076,59540.0,59539.0,0.0478]
[1724179881137,0.076,59540.0,59539.0,0.0428]
[1724179881367,0.08017872,59540.0,59539.0,0.0188]
[1724179881606,0.076,59540.0,59539.0,0.0188]
[1724179881842,0.076,59540.0,59539.0,0.0168]
[1724179883552,0.11895063,59540.0,59539.0,0.0168]
[1724179884881,0.09595063,59540.0,59539.0,0.0118]
[1724179887646,0.09595063,59540.0,59539.0,0.0127053]
[1724179888886,0.14595063,59540.0,59539.0,0.0127053]
[1724179889095,0.14595063,59540.0,59539.0,0.0077053]
[1724179890375,0.11595063,59540.0,59539.0,0.0077053]
[1724179890584,0.11595063,59540.0,59527.0,0.143433]
[1724179890585,0.17754569,59540.0,59535.0,0.0753]
[1724179890792,0.04712935,59539.0,59535.0,0.0753]
[1724179891001,0.04295063,59538.0,59535.0,0.0753]
[1724179891207,0.00417872,59537.0,59535.0,0.0753]
[1724179891414,0.04295063,59536.0,59535.0,0.0753]
[1724179892048,0.04295063,59536.0,59535.0,0.137]
[1724179892278,0.04295063,59539.0,59535.0,0.137]
[1724179892465,0.04295063,59538.0,59535.0,0.137]
[1724179892673,0.023,59537.0,59535.0,0.137]
[1724179893094,0.04295063,59536.0,59535.0,0.137]
[1724179893302,0.06595063,59536.0,59535.0,0.137]
[1724179896490,0.023,59536.0,59535.0,0.137]
[1724179896691,0.023,59539.0,59536.0,0.0784]
[1724179896934,0.023,59539.0,59536.0,0.0766]
[1724179897413,0.04294242,59538.0,59536.0,0.0766]
[1724179897653,0.023,59537.0,59536.0,0.0766]
[1724179897890,0.06594242,59537.0,59536.0,0.0766]
[1724179898124,0.023,59537.0,59536.0,0.0766]
[1724179898358,0.06594731,59539.0,59536.0,0.0766]
[1724179898592,0.04294731,59538.0,59536.0,0.0752]
[1724179898834,0.023,59537.0,59536.0,0.0752]
[1724179899183,0.06594731,59537.0,59536.0,0.0752]
[1724179899495,0.06594731,59537.0,59536.0,0.0735]
[1724179900176,0.06594731,59537.0,59536.0,0.0574]
[1724179900637,0.06594731,59537.0,59536.0,0.0523]
[1724179902359,0.06594731,59537.0,59536.0,0.051]
[1724179902871,0.06594731,59537.0,59536.0,0.0441]
[1724179902872,0.08062434,59537.0,59536.0,0.0441]
[1724179903607,0.08062434,59537.0,59531.0,0.0355053]
[1724179903865,0.04712603,59536.0,59531.0,0.0355053]
[1724179904112,0.04294731,59535.0,59531.0,0.0355053]
[1724179904361,0.04294731,59535.0,59520.0,0.4771]
[1724179904362,0.03,59532.0,59520.0,0.4771]
[1724179904581,0.24712603,59531.0,59520.0,0.4771]
[1724179905089,0.04294731,59530.0,59520.0,0.4771]
[1724179905591,0.00417872,59529.0,59520.0,0.4771]
[1724179905826,0.06594731,59528.0,59521.0,0.0793]
[1724179906056,0.04294731,59527.0,59521.0,0.0758]
[1724179906296,0.03236599,59526.0,59521.0,0.0758]
[1724179906811,0.04298512,59525.0,59521.0,0.0758]
[1724179907047,0.023,59524.0,59521.0,0.0758]
[1724179907318,0.04298512,59523.0,59521.0,0.0518]
[1724179907623,0.01053511,59522.0,59519.0,0.0613]
[1724179907838,0.03,59520.0,59514.0,0.000857]
[1724179908117,0.04716384,59519.0,59514.0,0.000857]
[1724179908379,0.2,59517.0,59514.0,0.000857]
[1724179909076,0.1445,59516.0,59514.0,0.000857]
[1724179909337,0.1445,59516.0,59499.0,0.05014223]
[1724179909338,0.23,59506.0,59499.0,0.0665]
[1724179909587,0.023,59505.0,59499.0,0.0665]
[1724179910082,0.023,59505.0,59498.0,0.009042]
[1724179910986,0.02717872,59505.0,59498.0,0.009042]
[1724179911248,0.03,59499.0,59498.0,0.009042]
[1724179911501,0.05717872,59499.0,59498.0,0.009042]
[1724179911736,0.08289659,59499.0,59498.0,0.009042]
[1724179912962,0.12593847,59499.0,59498.0,0.009042]
[1724179915425,0.12593847,59499.0,59498.0,0.004042]
[1724179915898,0.03,59492.0,59491.0,0.0002]
[1724179916140,0.05717872,59492.0,59491.0,0.0002]
[1724179916405,0.03417872,59492.0,59491.0,0.0002]
[1724179916656,0.0772206,59492.0,59491.0,0.0002]
[1724179916900,0.1589206,59492.0,59491.0,0.0002]
[1724179917131,0.6653346,59492.0,59491.0,0.0002]
[1724179917349,0.39024085,59492.0,59491.0,0.0002]
[1724179917595,0.17306985,59492.0,59491.0,0.0002]
[1724179918068,0.19606985,59492.0,59491.0,0.0002]
[1724179918329,0.053,59492.0,59491.0,0.0002]
[1724179919510,0.03,59492.0,59491.0,0.0662]
[1724179919959,0.2,59494.0,59491.0,0.0662]
[1724179920701,0.03,59498.0,59492.0,0.0783]
[1724179921991,0.023,59497.0,59492.0,0.0783]
[1724179922625,0.0175812,59507.0,59496.0,0.268925]
[1724179922867,0.03,59507.0,59498.0,0.0831]
[1724179923088,0.05175812,59507.0,59498.0,0.0831]
[1724179923755,0.03,59501.0,59498.0,0.0831]
[1724179923967,0.03,59501.0,59493.0,0.0815]
[1724179923968,0.2,59499.0,59493.0,0.0815]
[1724179924226,0.03352,59498.0,59493.0,0.0815]
[1724179924468,0.023,59500.0,59493.0,0.0815]
[1724179924469,0.023,59497.0,59493.0,0.0815]
[1724179924741,0.023,59500.0,59493.0,0.0815]
[1724179926997,0.023,59500.0,59494.0,0.217266]
[1724179927228,0.05175812,59507.0,59496.0,0.0828]
[1724179927229,0.023,59505.0,59496.0,0.0828]
[1724179927440,0.023,59506.0,59496.0,0.0828]
[1724179927650,0.023,59506.0,59495.0,0.134464]
[1724179927651,0.06507581,59506.0,59498.0,0.0752]
[1724179928533,0.023,59506.0,59498.0,0.0752]
[1724179928983,0.023,59506.0,59499.0,0.0752]
[1724179929198,0.023,59506.0,59500.0,0.0613]
[1724179931898,0.223,59506.0,59500.0,0.0613]
[1724179932369,0.00417872,59505.0,59500.0,0.0613]
[1724179932582,0.00417872,59505.0,59499.0,0.0752]
[1724179932583,0.023,59504.0,59499.0,0.0752]
[1724179932796,0.023,59504.0,59496.0,0.0757]
[1724179933268,0.03,59501.0,59496.0,0.0757]
[1724179933500,0.023,59500.0,59496.0,0.0757]
[1724179934626,0.023,59500.0,59495.0,0.0656]
[1724179934851,0.023,59500.0,59493.0,0.0757]
[1724179935105,0.00417872,59499.0,59493.0,0.0757]
[1724179935317,0.1011,59498.0,59491.0,0.0011064]
[1724179935533,0.06511787,59497.0,59491.0,0.0011064]
[1724179935746,0.023,59496.0,59491.0,0.0011064]
[1724179935964,0.03,59492.0,59491.0,0.0011064]
[1724179936183,0.053,59492.0,59491.0,0.0011064]
[1724179938209,0.023,59492.0,59491.0,0.1438064]
[1724179939324,0.023,59492.0,59491.0,0.0807064]
[1724179939552,0.03,59492.0,59491.0,0.0011064]
[1724179939786,0.053,59492.0,59491.0,0.0011064]
[1724179941304,0.023,59492.0,59491.0,0.0011064]
[1724179941525,0.023,59497.0,59491.0,0.0011064]
[1724179941741,0.04305395,59496.0,59491.0,0.0011064]
[1724179941955,0.023,59495.0,59491.0,0.0011064]
[1724179942440,0.023,59497.0,59491.0,0.0011064]
[1724179942698,0.04306396,59496.0,59491.0,0.0011064]
[1724179942959,0.023,59495.0,59491.0,0.0011064]
[1724179943192,0.04306396,59494.0,59491.0,0.0011064]
[1724179943448,0.023,59493.0,59491.0,0.0011064]
[1724179943699,0.04306396,59492.0,59491.0,0.0011064]
[1724179943933,0.06606396,59492.0,59491.0,0.0011064]
[1724179953188,0.06606396,59492.0,59491.0,0.1415064]
[1724179954089,0.07567036,59492.0,59491.0,0.1415064]
[1724179954318,1.09262736,59492.0,59491.0,0.0011064]
[1724179954587,1.09262736,59492.0,59488.0,0.009053]
[1724179954588,0.134478,59489.0,59488.0,0.009053]
[1724179954823,1.31698682,59489.0,59488.0,0.009053]
[1724179955074,1.41694382,59489.0,59488.0,0.009053]
[1724179955348,2.08410798,59489.0,59488.0,0.009053]
[1724179955695,2.48074654,59489.0,59488.0,0.009053]
[1724179956210,2.3547221,59489.0,59488.0,0.009053]
[1724179956446,1.337892,59480.0,59479.0,0.003137]
[1724179956691,1.48095596,59480.0,59479.0,0.003137]
[1724179957487,1.47695596,59480.0,59479.0,0.003137]
[1724179957743,1.48095596,59480.0,59479.0,0.003137]
[1724179958485,1.50395596,59480.0,59479.0,0.003137]
[1724179958732,1.55258707,59480.0,59479.0,0.003137]
[1724179959456,1.54858707,59480.0,59479.0,0.003137]
[1724179959937,1.55258707,59480.0,59479.0,0.003137]
[1724179961393,1.55881072,59480.0,59479.0,0.003137]
[1724179961866,1.28881372,59480.0,59479.0,0.003137]
[1724179962107,1.01981672,59480.0,59479.0,0.003137]
[1724179962366,1.28981372,59480.0,59479.0,0.003137]
[1724179963096,1.29381372,59480.0,59479.0,0.003137]
[1724179963324,1.28981372,59480.0,59479.0,0.003137]
[1724179963532,1.63581372,59480.0,59479.0,0.003137]
[1724179963759,1.36581672,59480.0,59479.0,0.003137]
[1724179964190,1.63581372,59480.0,59479.0,0.003137]
[1724179965328,0.41906396,59480.0,59479.0,0.148537]
[1724179965544,0.03,59480.0,59479.0,0.148537]
[1724179967357,0.03,59480.0,59479.0,0.003137]
[1724179967993,0.053,59480.0,59479.0,0.003137]
[1724179968219,0.103,59480.0,59479.0,0.003137]
[1724179968461,0.1333,59480.0,59479.0,0.003137]
[1724179969977,0.103,59480.0,59479.0,0.003137]
[1724179972796,0.103,59480.0,59479.0,0.078737]
[1724179974533,0.103822,59480.0,59479.0,0.078737]
[1724179977587,0.303822,59480.0,59479.0,0.078737]
[1724179979414,0.273822,59480.0,59479.0,0.142437]
[1724179981161,0.3012042,59480.0,59479.0,0.142437]
[1724179982373,0.273822,59480.0,59479.0,0.142437]
[1724179989309,0.303822,59480.0,59479.0,0.003137]
[1724179990235,0.72758652,59480.0,59479.0,0.003137]
[1724179990452,0.7234078,59480.0,59479.0,0.003137]
[1724179990677,0.84365114,59480.0,59479.0,0.003137]
[1724179991114,0.7234078,59480.0,59479.0,0.003137]
[1724179991830,1.1924048,59480.0,59479.0,0.003137]
[1724179992063,0.9234078,59480.0,59479.0,0.003137]
[1724179992293,1.1924048,59480.0,59479.0,0.003137]
[1724179992766,0.9234078,59480.0,59479.0,0.003137]
[1724179993222,1.07240756,59480.0,59479.0,0.003137]
[1724179993460,0.93790956,59480.0,59479.0,0.003137]
[1724179993690,1.07240756,59480.0,59479.0,0.003137]
[1724179993918,0.2939098,59480.0,59479.0,0.146837]
[1724179996439,0.3169098,59480.0,59479.0,0.146837]
[1724179997431,0.3169098,59480.0,59479.0,0.080537]
[1724179997683,0.34901865,59480.0,59479.0,0.080537]
[1724179997916,0.3169098,59480.0,59479.0,0.003137]
[1724180000259,0.3169098,59480.0,59479.0,0.084737]
[1724180001951,0.3169098,59480.0,59479.0,0.003137]
[1724180006027,0.4514078,59480.0,59479.0,0.003137]
[1724180006242,0.3169098,59480.0,59479.0,0.003137]
[1724180006683,0.45096568,59480.0,59479.0,0.003137]
[1724180007167,0.58546368,59480.0,59479.0,0.003137]
[1724180007420,0.93056068,59480.0,59479.0,0.003137]
[1724180007884,1.65835768,59480.0,59479.0,0.003137]
[1724180008111,1.65635768,59480.0,59479.0,0.003137]
[1724180008366,1.65835768,59480.0,59479.0,0.003137]
[1724180008584,1.65635768,59480.0,59479.0,0.003137]
[1724180009228,1.66035768,59480.0,59479.0,0.003137]
[1724180010152,1.65635768,59480.0,59479.0,0.003137]
[1724180011055,1.2533048,59480.0,59479.0,0.003137]
[1724180011342,1.08656738,59480.0,59479.0,0.003137]
[1724180011560,0.5559098,59480.0,59479.0,0.003137]
[1724180011774,0.4169098,59480.0,59479.0,0.003137]
[1724180012920,0.41683421,59480.0,59479.0,0.003137]
[1724180015040,0.31683421,59480.0,59479.0,0.079837]
[1724180015785,0.42993421,59480.0,59479.0,0.079837]
[1724180016028,0.49292763,59480.0,59479.0,0.003137]
[1724180016272,0.55842763,59480.0,59479.0,0.003137]
[1724180016524,0.69292563,59480.0,59479.0,0.003137]
[1724180016759,0.55842763,59480.0,59479.0,0.003137]
[1724180017673,0.49292763,59480.0,59479.0,0.003137]
[1724180019627,0.99642263,59480.0,59479.0,0.003137]
[1724180019870,1.00622022,59480.0,59479.0,0.003137]
[1724180020395,1.13237799,59480.0,59479.0,0.003137]
[1724180020621,0.73722322,59480.0,59479.0,0.003137]
[1724180021572,1.27521722,59480.0,59479.0,0.003137]
[1724180021801,1.00622022,59480.0,59479.0,0.003137]
[1724180022275,1.13237799,59480.0,59479.0,0.003137]
[1724180022971,0.86338099,59480.0,59479.0,0.003137]
[1724180023642,0.73722322,59480.0,59479.0,0.003137]
[1724180024541,0.86338099,59480.0,59479.0,0.003137]
[1724180024733,0.86338271,59480.0,59479.0,0.003137]
[1724180025638,0.73722322,59480.0,59479.0,0.003137]
[1724180025861,0.86338271,59480.0,59479.0,0.003137]
[1724180026810,0.73722322,59480.0,59479.0,0.003137]
[1724180027033,0.60272522,59480.0,59479.0,0.003137]
[1724180027247,0.73722322,59480.0,59479.0,0.003137]
[1724180027476,0.86338271,59480.0,59479.0,0.003137]
[1724180027711,0.73722322,59480.0,59479.0,0.003137]
[1724180028805,0.52993421,59480.0,59479.0,0.003137]
[1724180029041,0.52993421,59480.0,59479.0,0.063237]
[1724180031252,0.42993421,59480.0,59479.0,0.140737]
[1724180042417,0.36384641,59480.0,59479.0,0.275238]
[1724180042875,0.36384641,59480.0,59479.0,0.896377]
[1724180043335,0.36384641,59480.0,59479.0,0.813242]
[1724180044706,0.36384641,59480.0,59479.0,1.082244]
[1724180045398,0.36384641,59480.0,59479.0,1.083244]
[1724180046058,0.36384641,59480.0,59479.0,1.085244]
[1724180046272,0.36384641,59480.0,59479.0,1.082244]
[1724180046739,0.36384641,59480.0,59479.0,1.19860487]
[1724180047009,0.36384641,59480.0,59479.0,1.085244]
[1724180049067,0.36384641,59480.0,59479.0,1.356246]
[1724180049312,0.36384641,59480.0,59479.0,1.4065062]
[1724180049542,0.36384641,59480.0,59479.0,1.40644201]
[1724180049990,0.36384641,59480.0,59479.0,1.356246]
[1724180050223,0.36384641,59480.0,59479.0,1.52022478]
[1724180051585,0.36384641,59480.0,59479.0,1.62022478]
[1724180052054,0.000822,59498.0,59497.0,0.27626]
[1724180052288,0.000822,59498.0,59497.0,0.54854205]
[1724180056381,0.000822,59498.0,59497.0,0.27962105]
[1724180058799,0.000822,59498.0,59497.0,0.54854205]
[1724180059288,0.000822,59498.0,59497.0,0.81746305]
[1724180061858,0.000822,59498.0,59497.0,0.814102]
[1724180068768,0.000822,59498.0,59497.0,0.21466]
[1724180069419,0.000822,59498.0,59497.0,0.483581]
[1724180074682,0.000822,59498.0,59497.0,0.752502]
[1724180075109,0.000822,59498.0,59497.0,1.2935132]
[1724180075780,0.000822,59498.0,59497.0,1.2945132]
[1724180076253,0.000822,59498.0,59497.0,1.2935132]
[1724180082301,0.000822,59498.0,59492.0,0.268939]
[1724180082547,0.1174,59496.0,59487.0,0.4771]
[1724180082768,0.023,59495.0,59487.0,0.4771]
[1724180082992,0.06604605,59495.0,59487.0,0.4771]
[1724180083240,0.04304605,59494.0,59487.0,0.4771]
[1724180083458,0.023,59493.0,59487.0,0.611582]
[1724180083678,0.023,59493.0,59488.0,0.13448]
[1724180083928,0.023,59495.0,59488.0,0.13448]
[1724180084177,0.04305461,59494.0,59487.0,0.4771]
[1724180084416,0.06605461,59493.0,59487.0,0.611582]
[1724180084647,0.023,59493.0,59487.0,0.611582]
[1724180084888,0.04306184,59492.0,59487.0,0.611582]
[1724180085127,0.023,59491.0,59487.0,0.611582]
[1724180085351,0.023,59496.0,59487.0,0.611582]
[1724180085573,0.04306068,59495.0,59487.0,0.611582]
[1724180085820,0.023,59494.0,59487.0,0.611582]
[1724180086070,0.023,59494.0,59487.0,0.134482]
[1724180086291,0.1443,59497.0,59484.0,0.1396]
[1724180086292,0.01673,59493.0,59484.0,0.1396]
[1724180086543,0.023,59492.0,59484.0,0.1396]
[1724180087063,0.023,59494.0,59485.0,0.0033617]
[1724180088680,0.023,59494.0,59485.0,0.1378487]
[1724180090053,0.023,59494.0,59492.0,0.13447]
[1724180090290,0.023,59496.0,59491.0,0.134473]
[1724180090540,0.023,59496.0,59491.0,0.13783442]
[1724180090779,0.000822,59498.0,59494.0,0.134467]
[1724180091001,0.000822,59498.0,59494.0,0.134466]
[1724180091219,0.000822,59498.0,59493.0,0.134469]
[1724180091439,0.04304306,59497.0,59490.0,0.0832]
[1724180091658,0.081,59496.0,59491.0,0.134472]
[1724180092178,0.023,59495.0,59492.0,0.134471]
[1724180092396,0.0877,59495.0,59491.0,0.134473]
[1724180092636,0.0877,59495.0,59489.0,0.134478]
[1724180093586,0.0877,59495.0,59490.0,0.134476]
[1724180093820,0.0877,59495.0,59488.0,0.329658]
[1724180094039,0.0877,59495.0,59489.0,0.134477]
[1724180099311,0.05,59490.0,59489.0,0.134477]
[1724180099571,0.073,59490.0,59489.0,0.134477]
[1724180102052,0.05,59490.0,59489.0,0.520834]
[1724180102264,0.05,59490.0,59489.0,0.872191]
[1724180102474,0.05,59490.0,59489.0,0.754791]
[1724180102903,0.05,59490.0,59486.0,0.0824]
[1724180103166,0.023,59489.0,59483.0,0.134491]
[1724180103384,0.023,59489.0,59482.0,0.134493]
[1724180103606,0.0827,59488.0,59482.0,0.134493]
[1724180103833,0.05666,59487.0,59480.0,0.0009042]
[1724180104272,0.05666,59487.0,59480.0,0.1354012]
[1724180104990,0.023,59487.0,59481.0,0.134496]
[1724180106298,0.023,59487.0,59480.0,0.1354022]
[1724180106739,0.023,59487.0,59480.0,0.0009042]
[1724180106996,0.2639,59481.0,59480.0,0.0009042]
[1724180107198,0.32997868,59481.0,59480.0,0.0009042]
[1724180108530,0.2869,59481.0,59480.0,0.0009042]
[1724180109659,0.1695,59481.0,59480.0,0.0009042]